[Event "Titled Tuesday Blitz November 16 2021"]
[White "Mirzoev, Azer"]
[Black "Manafov, Vugar"]
[WhiteFideId "13400304"]
[BlackFideId "13410814"]
[WhiteElo "2525"]
[BlackElo "2277"]
[Result "1/2-1/2"]
[Round "11"]
[TimeControl "180+1"]
[Date "2021.11.16"]
[WhiteClock "0:00:04"]
[BlackClock "0:00:30"]

1. d4 {[%clk 0:03:00]}  Nf6 {[%clk 0:03:00]} 2. Nf3 {[%clk 0:02:59]}  e6 {[%clk 0:03:00]} 3. Bf4 {[%clk 0:02:59]}  Bd6 {[%clk 0:03:00]} 4. Bg3 {[%clk 0:02:58]}  Bxg3 {[%clk 0:02:59]} 5. hxg3 {[%clk 0:02:58]}  d6 {[%clk 0:03:00]} 6. Nbd2 {[%clk 0:02:57]}  Nc6 {[%clk 0:03:00]} 7. c3 {[%clk 0:02:57]}  e5 {[%clk 0:03:00]} 8. e4 {[%clk 0:02:53]}  Bg4 {[%clk 0:03:00]} 9. dxe5 {[%clk 0:02:53]}  dxe5 {[%clk 0:03:00]} 10. Bb5 {[%clk 0:02:50]}  O-O {[%clk 0:02:56]} 11. Qa4 {[%clk 0:02:45]}  Bd7 {[%clk 0:02:50]} 12. Qb3 {[%clk 0:02:41]}  Qe7 {[%clk 0:02:47]} 13. Be2 {[%clk 0:02:33]}  Rab8 {[%clk 0:02:28]} 14. O-O {[%clk 0:02:32]}  Be6 {[%clk 0:02:28]} 15. Qc2 {[%clk 0:02:29]}  Qc5 {[%clk 0:02:08]} 16. Nb3 {[%clk 0:02:24]}  Qe7 {[%clk 0:02:05]} 17. Rfe1 {[%clk 0:02:20]}  Rbd8 {[%clk 0:02:04]} 18. Bb5 {[%clk 0:02:17]}  Bd7 {[%clk 0:01:58]} 19. Rad1 {[%clk 0:02:14]}  a6 {[%clk 0:01:58]} 20. Bf1 {[%clk 0:02:12]}  Bg4 {[%clk 0:01:55]} 21. Rxd8 {[%clk 0:02:10]}  Rxd8 {[%clk 0:01:55]} 22. Nbd2 {[%clk 0:02:10]}  Qc5 {[%clk 0:01:52]} 23. Qb3 {[%clk 0:02:03]}  Na5 {[%clk 0:01:11]} 24. Qb4 {[%clk 0:01:55]}  Qxb4 {[%clk 0:01:07]} 25. cxb4 {[%clk 0:01:56]}  Nc6 {[%clk 0:01:08]} 26. a3 {[%clk 0:01:56]}  Nd4 {[%clk 0:01:06]} 27. Nxd4 {[%clk 0:01:54]}  Rxd4 {[%clk 0:01:07]} 28. Nb3 {[%clk 0:01:47]}  Rd6 {[%clk 0:01:01]} 29. f3 {[%clk 0:01:38]}  Bc8 {[%clk 0:00:58]} 30. Nc5 {[%clk 0:01:24]}  Nd7 {[%clk 0:00:54]} 31. Rc1 {[%clk 0:01:14]}  c6 {[%clk 0:00:54]} 32. Nb3 {[%clk 0:01:05]}  Nb6 {[%clk 0:00:51]} 33. Kf2 {[%clk 0:01:02]}  Kf8 {[%clk 0:00:47]} 34. Rc2 {[%clk 0:01:00]}  Ke7 {[%clk 0:00:42]} 35. g4 {[%clk 0:01:00]}  g5 {[%clk 0:00:41]} 36. Na5 {[%clk 0:00:53]}  f6 {[%clk 0:00:37]} 37. Ke3 {[%clk 0:00:52]}  Rd1 {[%clk 0:00:35]} 38. Be2 {[%clk 0:00:51]}  Rb1 {[%clk 0:00:35]} 39. Rd2 {[%clk 0:00:25]}  Na4 {[%clk 0:00:32]} 40. Nc4 {[%clk 0:00:21]}  Be6 {[%clk 0:00:33]} 41. Bd3 {[%clk 0:00:14]}  Re1+ {[%clk 0:00:27]} 42. Kf2 {[%clk 0:00:14]}  Ra1 {[%clk 0:00:25]} 43. Na5 {[%clk 0:00:13]}  Bc8 {[%clk 0:00:21]} 44. Nb3 {[%clk 0:00:11]}  Ra2 {[%clk 0:00:21]} 45. Nc5 {[%clk 0:00:09]}  Rxb2 {[%clk 0:00:21]} 46. Rxb2 {[%clk 0:00:09]}  Nxb2 {[%clk 0:00:22]} 47. Be2 {[%clk 0:00:09]}  Kd6 {[%clk 0:00:21]} 48. Ke3 {[%clk 0:00:09]}  a5 {[%clk 0:00:20]} 49. Kd2 {[%clk 0:00:08]}  axb4 {[%clk 0:00:20]} 50. axb4 {[%clk 0:00:09]}  b6 {[%clk 0:00:21]} 51. Nb3 {[%clk 0:00:09]}  Na4 {[%clk 0:00:21]} 52. Nc1 {[%clk 0:00:09]}  Be6 {[%clk 0:00:21]} 53. Bd1 {[%clk 0:00:09]}  Nb2 {[%clk 0:00:21]} 54. Be2 {[%clk 0:00:09]}  Bc4 {[%clk 0:00:21]} 55. Bxc4 {[%clk 0:00:08]}  Nxc4+ {[%clk 0:00:22]} 56. Kd3 {[%clk 0:00:09]}  Na3 {[%clk 0:00:21]} 57. Nb3 {[%clk 0:00:08]}  Nb5 {[%clk 0:00:21]} 58. Nd2 {[%clk 0:00:08]}  Ke6 {[%clk 0:00:21]} 59. Nc4 {[%clk 0:00:08]}  c5 {[%clk 0:00:19]} 60. Nxb6 {[%clk 0:00:08]}  cxb4 {[%clk 0:00:20]} 61. Kc4 {[%clk 0:00:08]}  Nd4 {[%clk 0:00:19]} 62. Kxb4 {[%clk 0:00:09]}  Nc2+ {[%clk 0:00:20]} 63. Kc3 {[%clk 0:00:08]}  Ne1 {[%clk 0:00:20]} 64. Kd2 {[%clk 0:00:08]}  Nxg2 {[%clk 0:00:21]} 65. Nc4 {[%clk 0:00:08]}  Nf4 {[%clk 0:00:21]} 66. Ne3 {[%clk 0:00:08]}  Kd6 {[%clk 0:00:22]} 67. Nf5+ {[%clk 0:00:08]}  Kd7 {[%clk 0:00:22]} 68. Ke3 {[%clk 0:00:08]}  Ne6 {[%clk 0:00:23]} 69. Ng3 {[%clk 0:00:08]}  Nd4 {[%clk 0:00:23]} 70. Nh5 {[%clk 0:00:08]}  Ke6 {[%clk 0:00:23]} 71. Ng3 {[%clk 0:00:08]}  Nc6 {[%clk 0:00:24]} 72. Kd3 {[%clk 0:00:08]}  Nb8 {[%clk 0:00:24]} 73. Ke3 {[%clk 0:00:08]}  Nd7 {[%clk 0:00:25]} 74. Nh5 {[%clk 0:00:08]}  Kd6 {[%clk 0:00:26]} 75. Ng7 {[%clk 0:00:08]}  Kc5 {[%clk 0:00:27]} 76. Nf5 {[%clk 0:00:07]}  Kc6 {[%clk 0:00:27]} 77. Ne7+ {[%clk 0:00:07]}  Kd6 {[%clk 0:00:27]} 78. Nf5+ {[%clk 0:00:07]}  Ke6 {[%clk 0:00:28]} 79. Ng3 {[%clk 0:00:07]}  Kf7 {[%clk 0:00:29]} 80. Nf5 {[%clk 0:00:07]}  Nf8 {[%clk 0:00:29]} 81. Ng3 {[%clk 0:00:07]}  Ne6 {[%clk 0:00:30]} 82. Nf5 {[%clk 0:00:06]}  Nf4 {[%clk 0:00:31]} 83. Ng3 {[%clk 0:00:07]}  Kg6 {[%clk 0:00:32]} 84. Kf2 {[%clk 0:00:07]}  h5 {[%clk 0:00:33]} 85. gxh5+ {[%clk 0:00:07]}  Nxh5 {[%clk 0:00:34]} 86. Nf5 {[%clk 0:00:07]}  Ng7 {[%clk 0:00:34]} 87. Ne3 {[%clk 0:00:06]}  Ne6 {[%clk 0:00:34]} 88. Nf5 {[%clk 0:00:06]}  Kh5 {[%clk 0:00:34]} 89. Kg3 {[%clk 0:00:06]}  Nd4 {[%clk 0:00:33]} 90. Ne3 {[%clk 0:00:06]}  Ne2+ {[%clk 0:00:34]} 91. Kf2 {[%clk 0:00:06]}  Nf4 {[%clk 0:00:34]} 92. Kg3 {[%clk 0:00:06]}  Kg6 {[%clk 0:00:33]} 93. Nf5 {[%clk 0:00:06]}  Kf7 {[%clk 0:00:33]} 94. Ne3 {[%clk 0:00:05]}  Ke6 {[%clk 0:00:34]} 95. Kg4 {[%clk 0:00:06]}  Nd3 {[%clk 0:00:33]} 96. Nf5 {[%clk 0:00:05]}  Kd7 {[%clk 0:00:32]} 97. Ne3 {[%clk 0:00:04]}  Ke6 {[%clk 0:00:30]} 98. Nf5 {[%clk 0:00:04]}  Ne1 {[%clk 0:00:30]} 99. Ne3 {[%clk 0:00:04]}  Nd3 {[%clk 0:00:30]} 1/2-1/2


[Site "https://www.chess.com"]

[Event "Titled Tuesday Blitz November 16 2021"]
[White "Pranav, V"]
[Black "Demchenko, Anton"]
[WhiteFideId "25060783"]
[BlackFideId "4160258"]
[WhiteElo "2351"]
[BlackElo "2583"]
[Result "0-1"]
[Round "11"]
[TimeControl "180+1"]
[Date "2021.11.16"]
[WhiteClock "0:00:03"]
[BlackClock "0:00:04"]

1. e4 {[%clk 0:03:00]}  e5 {[%clk 0:03:00]} 2. Nf3 {[%clk 0:03:01]}  Nc6 {[%clk 0:03:00]} 3. Bb5 {[%clk 0:03:00]}  a6 {[%clk 0:03:00]} 4. Ba4 {[%clk 0:03:00]}  d6 {[%clk 0:03:00]} 5. Bxc6+ {[%clk 0:03:00]}  bxc6 {[%clk 0:03:00]} 6. d4 {[%clk 0:03:00]}  f6 {[%clk 0:02:58]} 7. O-O {[%clk 0:02:59]}  Ne7 {[%clk 0:02:57]} 8. Nc3 {[%clk 0:02:58]}  Ng6 {[%clk 0:02:56]} 9. Qe2 {[%clk 0:02:53]}  Be7 {[%clk 0:02:57]} 10. Qc4 {[%clk 0:02:52]}  Qd7 {[%clk 0:02:55]} 11. Be3 {[%clk 0:02:50]}  a5 {[%clk 0:02:49]} 12. Rfd1 {[%clk 0:02:45]}  Ba6 {[%clk 0:02:38]} 13. Qb3 {[%clk 0:02:41]}  Qc8 {[%clk 0:02:03]} 14. Qa4 {[%clk 0:02:10]}  Bb7 {[%clk 0:02:01]} 15. Ne2 {[%clk 0:02:01]}  O-O {[%clk 0:01:55]} 16. Ng3 {[%clk 0:02:01]}  Re8 {[%clk 0:01:52]} 17. c4 {[%clk 0:02:00]}  Bf8 {[%clk 0:01:36]} 18. d5 {[%clk 0:01:59]}  c5 {[%clk 0:01:36]} 19. Rd3 {[%clk 0:01:55]}  Ne7 {[%clk 0:01:30]} 20. Nh4 {[%clk 0:01:39]}  c6 {[%clk 0:01:27]} 21. Qd1 {[%clk 0:01:24]}  cxd5 {[%clk 0:01:26]} 22. cxd5 {[%clk 0:01:25]}  Qc7 {[%clk 0:01:14]} 23. Rc1 {[%clk 0:01:23]}  Reb8 {[%clk 0:01:05]} 24. Bxc5 {[%clk 0:01:20]}  Ba6 {[%clk 0:00:37]} 25. Be3 {[%clk 0:01:11]}  Qd7 {[%clk 0:00:35]} 26. Rb3 {[%clk 0:01:10]}  a4 {[%clk 0:00:34]} 27. Rbc3 {[%clk 0:00:56]}  Rb7 {[%clk 0:00:28]} 28. Nh5 {[%clk 0:00:48]}  Rc8 {[%clk 0:00:18]} 29. Rxc8 {[%clk 0:00:39]}  Nxc8 {[%clk 0:00:19]} 30. Nf5 {[%clk 0:00:39]}  Kh8 {[%clk 0:00:16]} 31. h4 {[%clk 0:00:22]}  Ne7 {[%clk 0:00:09]} 32. Nxe7 {[%clk 0:00:20]}  Bxe7 {[%clk 0:00:09]} 33. Ng3 {[%clk 0:00:18]}  g6 {[%clk 0:00:09]} 34. h5 {[%clk 0:00:18]}  Kg7 {[%clk 0:00:10]} 35. hxg6 {[%clk 0:00:18]}  hxg6 {[%clk 0:00:10]} 36. Qd2 {[%clk 0:00:19]}  Bb5 {[%clk 0:00:09]} 37. f3 {[%clk 0:00:18]}  Rc7 {[%clk 0:00:09]} 38. Kf2 {[%clk 0:00:17]}  Rxc1 {[%clk 0:00:09]} 39. Qxc1 {[%clk 0:00:18]}  Qb7 {[%clk 0:00:09]} 40. Qh1 {[%clk 0:00:18]}  Be8 {[%clk 0:00:08]} 41. Qc1 {[%clk 0:00:12]}  Kg8 {[%clk 0:00:07]} 42. Ne2 {[%clk 0:00:12]}  Bd8 {[%clk 0:00:07]} 43. a3 {[%clk 0:00:12]}  Ba5 {[%clk 0:00:06]} 44. Qc2 {[%clk 0:00:10]}  Bd8 {[%clk 0:00:05]} 45. Nc1 {[%clk 0:00:09]}  Ba5 {[%clk 0:00:04]} 46. Nd3 {[%clk 0:00:10]}  Kf7 {[%clk 0:00:03]} 47. Nc1 {[%clk 0:00:07]}  Qb5 {[%clk 0:00:01]} 48. g4 {[%clk 0:00:07]}  Qb7 {[%clk 0:00:01]} 49. Ne2 {[%clk 0:00:07]}  Qb5 {[%clk 0:00:01]} 50. Nc3 {[%clk 0:00:07]}  Qc4 {[%clk 0:00:01]} 51. Qd2 {[%clk 0:00:06]}  Bxc3 {[%clk 0:00:02]} 52. bxc3 {[%clk 0:00:06]}  Bb5 {[%clk 0:00:02]} 53. g5 {[%clk 0:00:06]}  f5 {[%clk 0:00:02]} 54. Qd1 {[%clk 0:00:02]}  f4 {[%clk 0:00:02]} 55. Bd2 {[%clk 0:00:02]}  Qc5+ {[%clk 0:00:02]} 56. Kg2 {[%clk 0:00:02]}  Qxa3 {[%clk 0:00:02]} 57. Qh1 {[%clk 0:00:03]}  Qb2 {[%clk 0:00:02]} 58. Qh7+ {[%clk 0:00:03]}  Kf8 {[%clk 0:00:03]} 59. Qh8+ {[%clk 0:00:03]}  Ke7 {[%clk 0:00:04]} 60. Qf6+ {[%clk 0:00:03]}  Kd7 {[%clk 0:00:04]} 61. Qe6+ {[%clk 0:00:03]}  Kc7 {[%clk 0:00:04]} 62. c4 {[%clk 0:00:02]}  Qxd2+ {[%clk 0:00:04]} 63. Kg1 {[%clk 0:00:02]}  Bd7 {[%clk 0:00:05]} 64. c5 {[%clk 0:00:03]}  Bxe6 {[%clk 0:00:04]} 0-1


[Site "https://www.chess.com"]

[Event "Titled Tuesday Blitz November 16 2021"]
[White "Sarana, Alexey"]
[Black "Pour Agha Bala, Amirreza"]
[WhiteFideId "24133795"]
[BlackFideId "12572896"]
[WhiteElo "2689"]
[BlackElo "2313"]
[Result "1-0"]
[Round "11"]
[TimeControl "180+1"]
[Date "2021.11.16"]
[WhiteClock "0:00:09"]
[BlackClock "0:00:09"]

1. e4 {[%clk 0:03:00]}  c5 {[%clk 0:02:59]} 2. Nf3 {[%clk 0:03:00]}  Nc6 {[%clk 0:02:59]} 3. c3 {[%clk 0:03:00]}  d5 {[%clk 0:02:58]} 4. exd5 {[%clk 0:03:00]}  Qxd5 {[%clk 0:02:58]} 5. d4 {[%clk 0:03:00]}  e5 {[%clk 0:02:57]} 6. Nxe5 {[%clk 0:02:46]}  Nxe5 {[%clk 0:02:56]} 7. dxe5 {[%clk 0:02:46]}  Qxe5+ {[%clk 0:02:57]} 8. Be3 {[%clk 0:02:46]}  Bd7 {[%clk 0:02:55]} 9. Nd2 {[%clk 0:02:45]}  Nf6 {[%clk 0:02:53]} 10. Qb3 {[%clk 0:02:43]}  Qc7 {[%clk 0:02:49]} 11. O-O-O {[%clk 0:02:39]}  Be7 {[%clk 0:02:42]} 12. h3 {[%clk 0:02:23]}  O-O {[%clk 0:02:40]} 13. g4 {[%clk 0:02:23]}  a5 {[%clk 0:02:27]} 14. g5 {[%clk 0:02:14]}  a4 {[%clk 0:02:19]} 15. Qc4 {[%clk 0:02:14]}  Be6 {[%clk 0:02:16]} 16. Qf4 {[%clk 0:02:10]}  Qxf4 {[%clk 0:02:14]} 17. Bxf4 {[%clk 0:02:09]}  Nd5 {[%clk 0:02:14]} 18. Bg3 {[%clk 0:02:00]}  Bxg5 {[%clk 0:02:13]} 19. h4 {[%clk 0:02:00]}  Bxd2+ {[%clk 0:02:10]} 20. Rxd2 {[%clk 0:02:00]}  a3 {[%clk 0:02:10]} 21. Bd3 {[%clk 0:00:45]}  axb2+ {[%clk 0:02:08]} 22. Kxb2 {[%clk 0:00:46]}  Rfd8 {[%clk 0:02:03]} 23. Rhd1 {[%clk 0:00:45]}  Re8 {[%clk 0:00:48]} 24. Bb5 {[%clk 0:00:43]}  Nb6 {[%clk 0:00:40]} 25. Kc1 {[%clk 0:00:30]}  Rf8 {[%clk 0:00:39]} 26. Rd6 {[%clk 0:00:25]}  Na4 {[%clk 0:00:33]} 27. Be5 {[%clk 0:00:25]}  b6 {[%clk 0:00:28]} 28. Rg1 {[%clk 0:00:23]}  g6 {[%clk 0:00:28]} 29. h5 {[%clk 0:00:21]}  Bxa2 {[%clk 0:00:26]} 30. Bf6 {[%clk 0:00:20]}  Rae8 {[%clk 0:00:22]} 31. Bxa4 {[%clk 0:00:18]}  Re2 {[%clk 0:00:20]} 32. f4 {[%clk 0:00:13]}  Re4 {[%clk 0:00:19]} 33. Bc2 {[%clk 0:00:12]}  Rxf4 {[%clk 0:00:17]} 34. Bg5 {[%clk 0:00:12]}  Rf3 {[%clk 0:00:16]} 35. Kb2 {[%clk 0:00:11]}  Bc4 {[%clk 0:00:15]} 36. Bh6 {[%clk 0:00:11]}  Ra8 {[%clk 0:00:13]} 37. Rgd1 {[%clk 0:00:11]}  f5 {[%clk 0:00:12]} 38. Rd7 {[%clk 0:00:10]}  Rf2 {[%clk 0:00:11]} 39. Rg7+ {[%clk 0:00:10]}  Kf8 {[%clk 0:00:09]} 40. Ra7+ {[%clk 0:00:09]} 1-0


[Site "https://www.chess.com"]

[Event "Titled Tuesday Blitz November 16 2021"]
[White "Shipov, Sergei"]
[Black "Koellner, Ruben Gideon"]
[WhiteFideId "4113624"]
[BlackFideId "12993093"]
[WhiteElo "2768"]
[BlackElo "2567"]
[Result "1-0"]
[Round "11"]
[TimeControl "180+1"]
[Date "2021.11.16"]
[WhiteClock "0:00:15"]
[BlackClock "0:00:01"]

1. d4 {[%clk 0:03:00]}  d6 {[%clk 0:01:28]} 2. Nf3 {[%clk 0:01:28]}  Nf6 {[%clk 0:01:26]} 3. c4 {[%clk 0:01:28]}  g6 {[%clk 0:01:26]} 4. Nc3 {[%clk 0:01:29]}  Bf5 {[%clk 0:01:27]} 5. Ng5 {[%clk 0:01:28]}  Bg7 {[%clk 0:01:26]} 6. e4 {[%clk 0:01:27]}  Bd7 {[%clk 0:01:27]} 7. Be2 {[%clk 0:01:26]}  O-O {[%clk 0:01:25]} 8. O-O {[%clk 0:01:26]}  e5 {[%clk 0:01:25]} 9. d5 {[%clk 0:01:24]}  h6 {[%clk 0:01:21]} 10. Nf3 {[%clk 0:01:24]}  a5 {[%clk 0:01:21]} 11. Be3 {[%clk 0:01:22]}  Na6 {[%clk 0:01:20]} 12. Nd2 {[%clk 0:01:22]}  b6 {[%clk 0:01:19]} 13. a3 {[%clk 0:01:21]}  a4 {[%clk 0:01:18]} 14. Nxa4 {[%clk 0:01:20]}  Nc5 {[%clk 0:01:04]} 15. Nc3 {[%clk 0:01:20]}  Na4 {[%clk 0:01:02]} 16. Nxa4 {[%clk 0:01:19]}  Bxa4 {[%clk 0:01:03]} 17. b3 {[%clk 0:01:20]}  Bd7 {[%clk 0:01:02]} 18. b4 {[%clk 0:01:19]}  Kh7 {[%clk 0:01:01]} 19. c5 {[%clk 0:01:19]}  bxc5 {[%clk 0:00:59]} 20. bxc5 {[%clk 0:01:19]}  Ba4 {[%clk 0:01:00]} 21. Qc1 {[%clk 0:01:19]}  Qe7 {[%clk 0:00:59]} 22. c6 {[%clk 0:01:13]}  Rfb8 {[%clk 0:00:58]} 23. Qc3 {[%clk 0:01:10]}  Bb5 {[%clk 0:00:57]} 24. Bxb5 {[%clk 0:01:10]}  Rxb5 {[%clk 0:00:58]} 25. Rfb1 {[%clk 0:01:09]}  Rba5 {[%clk 0:00:58]} 26. Nc4 {[%clk 0:01:08]}  Ra4 {[%clk 0:00:58]} 27. Rb7 {[%clk 0:01:05]}  Nxe4 {[%clk 0:00:56]} 28. Qd3 {[%clk 0:00:55]}  f5 {[%clk 0:00:55]} 29. Rab1 {[%clk 0:00:50]}  Nf6 {[%clk 0:00:49]} 30. h3 {[%clk 0:00:39]}  Qf7 {[%clk 0:00:48]} 31. Nxd6 {[%clk 0:00:38]}  Qxd5 {[%clk 0:00:47]} 32. Qxd5 {[%clk 0:00:36]}  Nxd5 {[%clk 0:00:48]} 33. Nb5 {[%clk 0:00:33]}  f4 {[%clk 0:00:35]} 34. Bd2 {[%clk 0:00:26]}  Rc8 {[%clk 0:00:25]} 35. f3 {[%clk 0:00:26]}  Rc4 {[%clk 0:00:23]} 36. Rc1 {[%clk 0:00:25]}  Rxc1+ {[%clk 0:00:20]} 37. Bxc1 {[%clk 0:00:26]}  Bf8 {[%clk 0:00:20]} 38. a4 {[%clk 0:00:25]}  Bc5+ {[%clk 0:00:19]} 39. Kf1 {[%clk 0:00:25]}  Bb6 {[%clk 0:00:18]} 40. Bd2 {[%clk 0:00:20]}  Ra8 {[%clk 0:00:16]} 41. a5 {[%clk 0:00:19]}  Bxa5 {[%clk 0:00:16]} 42. Bxa5 {[%clk 0:00:19]}  Rxa5 {[%clk 0:00:17]} 43. Nxc7 {[%clk 0:00:19]}  Ne3+ {[%clk 0:00:13]} 44. Ke2 {[%clk 0:00:19]}  h5 {[%clk 0:00:10]} 45. Ne6+ {[%clk 0:00:18]}  Kh6 {[%clk 0:00:10]} 46. c7 {[%clk 0:00:18]}  Ra2+ {[%clk 0:00:09]} 47. Kd3 {[%clk 0:00:18]}  Rc2 {[%clk 0:00:10]} 48. Rb8 {[%clk 0:00:18]}  Rxc7 {[%clk 0:00:08]} 49. Nxc7 {[%clk 0:00:18]}  Nxg2 {[%clk 0:00:08]} 50. Ke4 {[%clk 0:00:18]}  Kg5 {[%clk 0:00:06]} 51. Rg8 {[%clk 0:00:18]}  Ne1 {[%clk 0:00:04]} 52. Nd5 {[%clk 0:00:16]}  Nc2 {[%clk 0:00:02]} 53. Kxe5 {[%clk 0:00:16]}  Ne1 {[%clk 0:00:02]} 54. Ke4 {[%clk 0:00:16]}  Ng2 {[%clk 0:00:02]} 55. Rg7 {[%clk 0:00:16]}  Nh4 {[%clk 0:00:02]} 56. Nxf4 {[%clk 0:00:15]}  Nf5 {[%clk 0:00:02]} 57. Rxg6+ {[%clk 0:00:15]}  Kh4 {[%clk 0:00:01]} 58. Rf6 {[%clk 0:00:15]} 1-0


[Site "https://www.chess.com"]

[Event "Titled Tuesday Blitz November 16 2021"]
[White "Shkapenko, Pavel"]
[Black "Rustemov, Alexander"]
[WhiteFideId "4151933"]
[BlackFideId "4119002"]
[WhiteElo "2386"]
[BlackElo "2756"]
[Result "1/2-1/2"]
[Round "11"]
[TimeControl "180+1"]
[Date "2021.11.16"]
[WhiteClock "0:01:48"]
[BlackClock "0:01:05"]

1. e4 {[%clk 0:02:55]}  e6 {[%clk 0:02:59]} 2. d4 {[%clk 0:02:55]}  d5 {[%clk 0:03:00]} 3. exd5 {[%clk 0:02:56]}  exd5 {[%clk 0:03:00]} 4. Nf3 {[%clk 0:02:57]}  Bf5 {[%clk 0:02:55]} 5. c4 {[%clk 0:02:56]}  Bxb1 {[%clk 0:02:54]} 6. Rxb1 {[%clk 0:02:55]}  Bb4+ {[%clk 0:02:55]} 7. Bd2 {[%clk 0:02:55]}  Bxd2+ {[%clk 0:02:55]} 8. Qxd2 {[%clk 0:02:55]}  Nf6 {[%clk 0:02:56]} 9. Qe3+ {[%clk 0:02:51]}  Qe7 {[%clk 0:02:55]} 10. Qxe7+ {[%clk 0:02:51]}  Kxe7 {[%clk 0:02:55]} 11. c5 {[%clk 0:02:51]}  Re8 {[%clk 0:02:53]} 12. Bd3 {[%clk 0:02:37]}  Kf8+ {[%clk 0:02:53]} 13. Kd2 {[%clk 0:02:37]}  Ne4+ {[%clk 0:02:53]} 14. Bxe4 {[%clk 0:02:37]}  dxe4 {[%clk 0:02:52]} 15. Ne5 {[%clk 0:02:34]}  f6 {[%clk 0:02:42]} 16. Nc4 {[%clk 0:02:32]}  Nc6 {[%clk 0:02:41]} 17. Kc3 {[%clk 0:02:30]}  Ne7 {[%clk 0:02:36]} 18. Ne3 {[%clk 0:02:29]}  f5 {[%clk 0:02:35]} 19. g3 {[%clk 0:02:26]}  Rad8 {[%clk 0:02:34]} 20. Kc4 {[%clk 0:02:16]}  c6 {[%clk 0:02:25]} 21. Rbd1 {[%clk 0:02:16]}  g5 {[%clk 0:02:03]} 22. d5 {[%clk 0:02:11]}  f4 {[%clk 0:02:00]} 23. gxf4 {[%clk 0:02:03]}  gxf4 {[%clk 0:01:59]} 24. d6 {[%clk 0:02:03]}  fxe3 {[%clk 0:01:53]} 25. dxe7+ {[%clk 0:02:03]}  Kxe7 {[%clk 0:01:53]} 26. fxe3 {[%clk 0:02:03]}  Rxd1 {[%clk 0:01:33]} 27. Rxd1 {[%clk 0:02:02]}  Rg8 {[%clk 0:01:34]} 28. Rd4 {[%clk 0:01:59]}  Rg4 {[%clk 0:01:31]} 29. Kc3 {[%clk 0:01:56]}  Rh4 {[%clk 0:01:27]} 30. Rb4 {[%clk 0:01:49]}  b6 {[%clk 0:01:05]} 31. cxb6 {[%clk 0:01:49]}  axb6 {[%clk 0:01:05]} 32. Rxb6 {[%clk 0:01:48]}  Kd6 {[%clk 0:01:05]} 1/2-1/2


[Site "https://www.chess.com"]

[Event "Titled Tuesday Blitz November 16 2021"]
[White "Sjugirov, Sanan"]
[Black "Sadhwani, Raunak"]
[WhiteFideId "4189302"]
[BlackFideId "35093487"]
[WhiteElo "2653"]
[BlackElo "2517"]
[Result "0-1"]
[Round "11"]
[TimeControl "180+1"]
[Date "2021.11.16"]
[WhiteClock "0:00:23"]
[BlackClock "0:00:55"]

1. e4 {[%clk 0:03:00]}  e5 {[%clk 0:03:00]} 2. Nf3 {[%clk 0:03:00]}  Nc6 {[%clk 0:03:01]} 3. Bb5 {[%clk 0:03:01]}  Nge7 {[%clk 0:03:01]} 4. Nc3 {[%clk 0:02:56]}  Ng6 {[%clk 0:02:59]} 5. h4 {[%clk 0:02:52]}  h5 {[%clk 0:02:34]} 6. d3 {[%clk 0:02:46]}  d6 {[%clk 0:02:26]} 7. d4 {[%clk 0:02:28]}  exd4 {[%clk 0:02:23]} 8. Nxd4 {[%clk 0:02:27]}  Bd7 {[%clk 0:02:24]} 9. g3 {[%clk 0:02:14]}  Be7 {[%clk 0:02:13]} 10. Nxc6 {[%clk 0:02:11]}  bxc6 {[%clk 0:02:14]} 11. Be2 {[%clk 0:02:11]}  Bf6 {[%clk 0:01:57]} 12. Bxh5 {[%clk 0:02:05]}  Qe7 {[%clk 0:01:57]} 13. Be3 {[%clk 0:01:54]}  Rb8 {[%clk 0:01:38]} 14. Bxg6 {[%clk 0:01:27]}  fxg6 {[%clk 0:01:38]} 15. Bd4 {[%clk 0:01:27]}  Rxb2 {[%clk 0:01:34]} 16. O-O {[%clk 0:01:20]}  Rb4 {[%clk 0:01:26]} 17. Bxf6 {[%clk 0:01:11]}  Qxf6 {[%clk 0:01:26]} 18. e5 {[%clk 0:01:02]}  dxe5 {[%clk 0:01:09]} 19. Re1 {[%clk 0:00:58]}  O-O {[%clk 0:01:00]} 20. Qe2 {[%clk 0:00:40]}  Bg4 {[%clk 0:00:59]} 21. Qe3 {[%clk 0:00:40]}  Bf3 {[%clk 0:00:56]} 22. Kh2 {[%clk 0:00:23]}  Rxh4+ {[%clk 0:00:55]} 0-1


[Site "https://www.chess.com"]

[Event "Titled Tuesday Blitz November 16 2021"]
[White "Svidler, Peter"]
[Black "Tsydypov, Zhamsaran"]
[WhiteFideId "4102142"]
[BlackFideId "4108566"]
[WhiteElo "2709"]
[BlackElo "2614"]
[Result "0-1"]
[Round "11"]
[TimeControl "180+1"]
[Date "2021.11.16"]
[WhiteClock "0:00:21"]
[BlackClock "0:00:12"]

1. e4 {[%clk 0:03:00]}  c5 {[%clk 0:02:59]} 2. Nf3 {[%clk 0:03:00]}  d6 {[%clk 0:03:00]} 3. d4 {[%clk 0:03:00]}  cxd4 {[%clk 0:03:00]} 4. Nxd4 {[%clk 0:03:01]}  Nf6 {[%clk 0:03:00]} 5. Nc3 {[%clk 0:03:01]}  a6 {[%clk 0:03:01]} 6. a3 {[%clk 0:03:01]}  e6 {[%clk 0:03:00]} 7. g4 {[%clk 0:03:00]}  h6 {[%clk 0:02:58]} 8. Bg2 {[%clk 0:02:59]}  g5 {[%clk 0:02:58]} 9. h4 {[%clk 0:02:55]}  Rg8 {[%clk 0:02:56]} 10. hxg5 {[%clk 0:02:55]}  hxg5 {[%clk 0:02:57]} 11. Be3 {[%clk 0:02:40]}  Nbd7 {[%clk 0:02:56]} 12. Qe2 {[%clk 0:02:18]}  Ne5 {[%clk 0:02:56]} 13. O-O-O {[%clk 0:02:18]}  Nfxg4 {[%clk 0:02:53]} 14. Bd2 {[%clk 0:02:17]}  Bd7 {[%clk 0:02:51]} 15. Bh3 {[%clk 0:02:00]}  Nf6 {[%clk 0:02:51]} 16. Bxg5 {[%clk 0:01:56]}  Rxg5 {[%clk 0:02:45]} 17. f4 {[%clk 0:01:56]}  Rh5 {[%clk 0:02:34]} 18. fxe5 {[%clk 0:01:56]}  Rxe5 {[%clk 0:02:34]} 19. Qf3 {[%clk 0:01:30]}  Qe7 {[%clk 0:02:23]} 20. Rdf1 {[%clk 0:01:24]}  Bg7 {[%clk 0:02:14]} 21. Qg3 {[%clk 0:01:03]}  Nh5 {[%clk 0:02:11]} 22. Qf2 {[%clk 0:00:59]}  Rg5 {[%clk 0:01:44]} 23. Nf3 {[%clk 0:00:47]}  Bxc3 {[%clk 0:01:28]} 24. bxc3 {[%clk 0:00:47]}  Ra5 {[%clk 0:01:27]} 25. Bg4 {[%clk 0:00:47]}  d5 {[%clk 0:01:05]} 26. Rxh5 {[%clk 0:00:46]}  O-O-O {[%clk 0:01:03]} 27. Nd4 {[%clk 0:00:37]}  Qxa3+ {[%clk 0:00:57]} 28. Kd2 {[%clk 0:00:36]}  Rc5 {[%clk 0:00:56]} 29. Nb3 {[%clk 0:00:35]}  Rc4 {[%clk 0:00:52]} 30. Be2 {[%clk 0:00:28]}  Rxe4 {[%clk 0:00:46]} 31. Qc5+ {[%clk 0:00:28]}  Qxc5 {[%clk 0:00:43]} 32. Nxc5 {[%clk 0:00:27]}  Rxe2+ {[%clk 0:00:19]} 33. Kxe2 {[%clk 0:00:27]}  Bb5+ {[%clk 0:00:19]} 34. Nd3 {[%clk 0:00:28]}  f5 {[%clk 0:00:20]} 35. Ke3 {[%clk 0:00:28]}  Rg8 {[%clk 0:00:19]} 36. Nf4 {[%clk 0:00:26]}  Bxf1 {[%clk 0:00:19]} 37. Nxe6 {[%clk 0:00:24]}  Rg4 {[%clk 0:00:18]} 38. Nd4 {[%clk 0:00:23]}  f4+ {[%clk 0:00:17]} 39. Kf2 {[%clk 0:00:23]}  Bg2 {[%clk 0:00:14]} 40. Rh7 {[%clk 0:00:21]}  Be4 {[%clk 0:00:12]} 41. Rf7 {[%clk 0:00:21]}  Rg2+ {[%clk 0:00:11]} 42. Ke1 {[%clk 0:00:21]}  f3 {[%clk 0:00:11]} 43. Nxf3 {[%clk 0:00:20]}  Rxc2 {[%clk 0:00:11]} 44. Nd4 {[%clk 0:00:20]}  Rxc3 {[%clk 0:00:12]} 45. Ke2 {[%clk 0:00:21]}  a5 {[%clk 0:00:12]} 0-1


[Site "https://www.chess.com"]